[Event "Queens Festival Final-B 2022"]
[Site "Tornelo"]
[Date "2022.06.25"]
[Round "5.2"]
[White "Francis, Onkemetse"]
[Black "Bian, Erin"]
[Result "0-1"]
[ECO "C54"]
[WhiteElo "1777"]
[BlackElo "1811"]
[Annotator "NA RC"]
[PlyCount "72"]
[EventDate "2022.06.24"]
[EventType "tourn"]
[EventCountry "NET"]
[SourceTitle "playchess.com"]
[Source "ChessBase"]
[SourceQuality "1"]
[TimeControl "180+2"]

1. e4 {[%emt 0:00:02]} e5 {[%emt 0:00:06]} 2. Nf3 {[%emt 0:00:03]} Nc6 {[%emt 0:00:01]} 3. Bc4 {[%emt 0:00:02]} Bc5 {[%emt 0:00:02]} 4. c3 {[%emt 0:00:03]} Nf6 {[%emt 0:00:01]} 5. d3 {[%emt 0:00:02]} O-O {[%emt 0:00:04]} 6. O-O {[%emt 0:00:04]} d5 {[%emt 0:00:01]} 7. exd5 {[%emt 0:00:01]} Nxd5 {[%emt 0:00:00]} 8. h3 {[%emt 0:00:06]} Nb6 {[%emt 0:00:08]} 9. Bb3 {[%emt 0:00:02]} Bf5 {[%emt 0:00:02]} 10. Bc2 {[%emt 0:00:04]} Bg6 {[%emt 0:00:12]} 11. Re1 {[%emt 0:00:06]} Qd6 {[%emt 0:00:05]} 12. Nbd2 {[%emt 0:00:05]} Rad8 {[%emt 0:00:06]} 13. Ne4 {[%emt 0:00:02]} Bxe4 {[%emt 0:00:03]} 14. dxe4 {[%emt 0:00:03]} Qg6 {[%emt 0:00:08]} 15. Qe2 {[%emt 0:00:06]} a5 {[%emt 0:00:04]} 16. Nh4 {[%emt 0:00:03]} Qf6 {[%emt 0:00:06]} 17. Nf5 {[%emt 0:00:05]} g6 {[%emt 0:00:08]} 18. Nh6+ {[%emt 0:00:04]} Kh8 {[%emt 0:00:01]} 19. Ng4 {[%emt 0:00:04]} Qe7 {[%emt 0:00:05]} 20. Bh6 {[%emt 0:00:10]} Rfe8 {[%emt 0:00:03]} 21. Rad1 {[%emt 0:00:06]} a4 {[%emt 0:00:13]} 22. Qf3 {[%emt 0:00:12]} Qe6 {[%emt 0:00:16]} 23. Bg5 {[%emt 0:00:11]} Be7 {[%emt 0:00:03]} 24. Bxe7 {[%emt 0:00:18]} Qxe7 {[%emt 0:00:12]} 25. Nf6 {[%emt 0:00:07]} Rf8 {[%emt 0:00:12]} 26. g4 {[%emt 0:00:03]} Nd7 {[%emt 0:00:23]} 27. Nxd7 {[%emt 0:00:06]} Rxd7 {[%emt 0:00:02]} 28. Rxd7 {[%emt 0:00:04]} Qxd7 {[%emt 0:00:01]} 29. Bxa4 {[%emt 0:00:02]} Qe6 {[%emt 0:00:15]} 30. Bb3 {[%emt 0:01:22]} Qe7 {[%emt 0:00:02]} 31. Rd1 {[%emt 0:00:03]} Na5 {[%emt 0:00:03]} 32. Qd3 {[%emt 0:00:05]} f5 {[%emt 0:00:21]} 33. exf5 {[%emt 0:00:03]} gxf5 {[%emt 0:00:02]} 34. Qd7 {[%emt 0:00:08]} Qg5 {[%emt 0:00:14]} 35. f3 {[%emt 0:00:02]} Nxb3 {[%emt 0:00:03]} 36. axb3 {[%emt 0:00:03]} fxg4 {[%emt 0:00:01]} 0-1

[Event "Queens Festival Final-B 2022"]
[Site "Tornelo"]
[Date "2022.06.25"]
[Round "5.3"]
[White "Mariroh, Fariha"]
[Black "Mammadova, Aysel"]
[Result "0-1"]
[ECO "C55"]
[WhiteElo "1839"]
[BlackElo "1893"]
[Annotator "NA RC"]
[PlyCount "112"]
[EventDate "2022.06.24"]
[EventType "tourn"]
[EventCountry "NET"]
[SourceTitle "playchess.com"]
[Source "ChessBase"]
[SourceQuality "1"]
[TimeControl "180+2"]

1. e4 {[%emt 0:00:02]} e5 {[%emt 0:00:06]} 2. Nf3 {[%emt 0:00:02]} Nc6 {[%emt 0:00:01]} 3. Bc4 {[%emt 0:00:01]} Be7 {[%emt 0:00:03]} 4. d4 {[%emt 0:00:01]} d6 {[%emt 0:00:02]} 5. O-O {[%emt 0:00:02]} Nf6 {[%emt 0:00:03]} 6. Nc3 {[%emt 0:00:05]} Bg4 {[%emt 0:00:07]} 7. dxe5 {[%emt 0:00:04]} Nxe5 {[%emt 0:00:07]} 8. Be2 {[%emt 0:00:01]} Bxf3 {[%emt 0:00:04]} 9. Bxf3 {[%emt 0:00:01]} Nxf3+ {[%emt 0:00:02]} 10. Qxf3 {[%emt 0:00:01]} O-O {[%emt 0:00:02]} 11. Bf4 {[%emt 0:00:03]} Nd7 {[%emt 0:00:02]} 12. Nd5 {[%emt 0:00:04]} c6 {[%emt 0:00:05]} 13. Nxe7+ {[%emt 0:00:06]} Qxe7 {[%emt 0:00:02]} 14. Rad1 {[%emt 0:00:01]} Ne5 {[%emt 0:00:03]} 15. Qg3 {[%emt 0:00:04]} Rad8 {[%emt 0:00:11]} 16. b3 {[%emt 0:00:06]} Rfe8 {[%emt 0:00:11]} 17. Rd2 {[%emt 0:00:05]} Ng6 {[%emt 0:00:06]} 18. f3 {[%emt 0:00:09]} Nxf4 {[%emt 0:00:07]} 19. Qxf4 {[%emt 0:00:00]} d5 {[%emt 0:00:13]} 20. exd5 {[%emt 0:00:06]} Rxd5 {[%emt 0:00:04]} 21. Rxd5 {[%emt 0:00:02]} cxd5 {[%emt 0:00:02]} 22. Rd1 {[%emt 0:00:04]} Qc5+ {[%emt 0:00:11]} 23. Kh1 {[%emt 0:00:51]} Qxc2 {[%emt 0:00:05]} 24. Rg1 {[%emt 0:00:13]} Qf2 {[%emt 0:00:04]} 25. Qb4 {[%emt 0:00:05]} h6 {[%emt 0:00:11]} 26. h3 {[%emt 0:00:07]} d4 {[%emt 0:00:14]} 27. Qxb7 {[%emt 0:00:11]} d3 {[%emt 0:00:03]} 28. Qd7 {[%emt 0:00:04]} Qe2 {[%emt 0:00:02]} 29. Kh2 {[%emt 0:00:21]} d2 {[%emt 0:00:04]} 30. Rd1 {[%emt 0:00:06]} Qe5+ {[%emt 0:00:04]} 31. Kh1 {[%emt 0:00:12]} Qe1+ {[%emt 0:00:05]} 32. Kh2 {[%emt 0:00:01]} Qxd1 {[%emt 0:00:09]} 33. Qxe8+ {[%emt 0:00:02]} Kh7 {[%emt 0:00:03]} 34. Qe4+ {[%emt 0:00:09]} g6 {[%emt 0:00:03]} 35. Qd5 {[%emt 0:00:07]} Kg7 {[%emt 0:00:09]} 36. Qe5+ {[%emt 0:00:02]} Kf8 {[%emt 0:00:04]} 37. Qd6+ {[%emt 0:00:23]} Ke8 {[%emt 0:00:08]} 38. Qb8+ {[%emt 0:00:01]} Ke7 {[%emt 0:00:02]} 39. Qxa7+ {[%emt 0:00:01]} Ke6 {[%emt 0:00:02]} 40. Qe3+ {[%emt 0:00:02]} Kd7 {[%emt 0:00:04]} 41. Qd4+ {[%emt 0:00:01]} Ke7 {[%emt 0:00:03]} 42. Qe5+ {[%emt 0:00:01]} Kf8 {[%emt 0:00:02]} 43. Qh8+ {[%emt 0:00:01]} Ke7 {[%emt 0:00:02]} 44. Qe5+ {[%emt 0:00:01]} Kd7 {[%emt 0:00:02]} 45. Qd5+ {[%emt 0:00:02]} Ke8 {[%emt 0:00:03]} 46. Qe5+ {[%emt 0:00:01]} Kd7 {[%emt 0:00:02]} 47. Qd5+ {[%emt 0:00:01]} Kc7 {[%emt 0:00:02]} 48. Qxf7+ {[%emt 0:00:02]} Kc6 {[%emt 0:00:03]} 49. Qxg6+ {[%emt 0:00:01]} Kc5 {[%emt 0:00:02]} 50. Qf5+ {[%emt 0:00:07]} Kd4 {[%emt 0:00:02]} 51. Qf6+ {[%emt 0:00:06]} Kd3 {[%emt 0:00:04]} 52. Qf5+ {[%emt 0:00:02]} Kc3 {[%emt 0:00:03]} 53. Qe5+ {[%emt 0:00:01]} Kc2 {[%emt 0:00:03]} 54. Qe4+ {[%emt 0:00:03]} Kc1 {[%emt 0:00:03]} 55. Qe3 {[%emt 0:00:07]} Qc2 {[%emt 0:00:05]} 56. a4 {[%emt 0:00:04]} Kb1 {[%emt 0:00:03]} 0-1

[Event "Queens Festival Final-B 2022"]
[Site "Tornelo"]
[Date "2022.06.25"]
[Round "5.4"]
[White "Deak-Sala, Emilia"]
[Black "Vujcic, Milena"]
[Result "0-1"]
[ECO "C52"]
[WhiteElo "1883"]
[BlackElo "1987"]
[Annotator "NA RC"]
[PlyCount "50"]
[EventDate "2022.06.24"]
[EventType "tourn"]
[EventCountry "NET"]
[SourceTitle "playchess.com"]
[Source "ChessBase"]
[SourceQuality "1"]
[TimeControl "180+2"]

1. e4 {[%emt 0:00:02]} e5 {[%emt 0:00:04]} 2. Nf3 {[%emt 0:00:02]} Nc6 {[%emt 0:00:01]} 3. Bc4 {[%emt 0:00:01]} Bc5 {[%emt 0:00:02]} 4. b4 {[%emt 0:00:02]} Bxb4 {[%emt 0:00:01]} 5. c3 {[%emt 0:00:01]} Ba5 {[%emt 0:00:01]} 6. d4 {[%emt 0:00:01]} exd4 {[%emt 0:00:08]} 7. Qb3 {[%emt 0:00:02]} Qf6 {[%emt 0:00:03]} 8. Bg5 {[%emt 0:00:10]} Qg6 {[%emt 0:00:15]} 9. O-O {[%emt 0:00:07]} Nge7 {[%emt 0:00:08]} 10. Bxe7 {[%emt 0:00:14]} Nxe7 {[%emt 0:00:20]} 11. Ne5 {[%emt 0:00:07]} Qb6 {[%emt 0:00:07]} 12. Bxf7+ {[%emt 0:00:11]} Kf8 {[%emt 0:00:04]} 13. cxd4 {[%emt 0:01:04]} Qxd4 {[%emt 0:00:12]} 14. Bh5 {[%emt 0:00:14]} d5 {[%emt 0:01:21]} 15. Qf3+ {[%emt 0:00:41]} Nf5 {[%emt 0:00:10]} 16. Na3 {[%emt 0:00:22]} Qxe4 {[%emt 0:00:10]} 17. Qxe4 {[%emt 0:00:08]} dxe4 {[%emt 0:00:02]} 18. g4 {[%emt 0:00:02]} Nd6 {[%emt 0:00:08]} 19. Rad1 {[%emt 0:00:03]} g6 {[%emt 0:00:04]} 20. Bxg6 {[%emt 0:00:02]} hxg6 {[%emt 0:00:01]} 21. Nxg6+ {[%emt 0:00:02]} Kg7 {[%emt 0:00:01]} 22. Nxh8 {[%emt 0:00:01]} Bxg4 {[%emt 0:00:03]} 23. Ng6 {[%emt 0:00:04]} Bxd1 {[%emt 0:00:03]} 24. Rxd1 {[%emt 0:00:02]} Kxg6 {[%emt 0:00:01]} 25. Nc2 {[%emt 0:00:01]} Bb6 {[%emt 0:00:02]} 0-1

[Event "Queens Festival Final-B 2022"]
[Site "Tornelo"]
[Date "2022.06.25"]
[Round "5.5"]
[White "Shohradowa, Lala"]
[Black "Scarsi, Anna Laura"]
[Result "1/2-1/2"]
[ECO "D32"]
[WhiteElo "1856"]
[BlackElo "1867"]
[Annotator "NA RC"]
[PlyCount "173"]
[EventDate "2022.06.24"]
[EventType "tourn"]
[EventCountry "NET"]
[SourceTitle "playchess.com"]
[Source "ChessBase"]
[SourceQuality "1"]
[TimeControl "180+2"]

1. d4 {[%emt 0:00:02]} d5 {[%emt 0:00:05]} 2. c4 {[%emt 0:00:02]} e6 {[%emt 0:00:01]} 3. Nc3 {[%emt 0:00:02]} c5 {[%emt 0:00:02]} 4. cxd5 {[%emt 0:00:03]} exd5 {[%emt 0:00:00]} 5. dxc5 {[%emt 0:00:02]} d4 {[%emt 0:00:01]} 6. Na4 {[%emt 0:00:11]} Nc6 {[%emt 0:00:08]} 7. e3 {[%emt 0:00:06]} Bxc5 {[%emt 0:00:07]} 8. Nxc5 {[%emt 0:00:09]} Qa5+ {[%emt 0:00:03]} 9. Bd2 {[%emt 0:00:03]} Qxc5 {[%emt 0:00:02]} 10. Nf3 {[%emt 0:00:02]} dxe3 {[%emt 0:00:07]} 11. Bxe3 {[%emt 0:00:02]} Qb4+ {[%emt 0:00:01]} 12. Qd2 {[%emt 0:00:05]} Qxd2+ {[%emt 0:00:02]} 13. Kxd2 {[%emt 0:00:05]} Nf6 {[%emt 0:00:00]} 14. Bc4 {[%emt 0:00:06]} Bf5 {[%emt 0:00:09]} 15. Rhe1 {[%emt 0:00:08]} O-O {[%emt 0:00:04]} 16. a3 {[%emt 0:00:12]} Rfd8+ {[%emt 0:00:07]} 17. Kc1 {[%emt 0:00:06]} Rac8 {[%emt 0:00:02]} 18. b3 {[%emt 0:00:13]} Na5 {[%emt 0:00:07]} 19. Kb2 {[%emt 0:00:03]} Nxc4+ {[%emt 0:00:04]} 20. bxc4 {[%emt 0:00:02]} Rxc4 {[%emt 0:00:01]} 21. Nd4 {[%emt 0:00:07]} Rcxd4 {[%emt 0:00:07]} 22. Bxd4 {[%emt 0:00:03]} Rxd4 {[%emt 0:00:00]} 23. Rad1 {[%emt 0:00:05]} Rxd1 {[%emt 0:00:04]} 24. Rxd1 {[%emt 0:00:02]} Kf8 {[%emt 0:00:02]} 25. f3 {[%emt 0:00:02]} Ke7 {[%emt 0:00:03]} 26. Re1+ {[%emt 0:00:03]} Kd6 {[%emt 0:00:02]} 27. Rd1+ {[%emt 0:00:01]} Kc6 {[%emt 0:00:04]} 28. Kb3 {[%emt 0:00:07]} Nd5 {[%emt 0:00:09]} 29. Rc1+ {[%emt 0:00:02]} Kd6 {[%emt 0:00:06]} 30. a4 {[%emt 0:00:04]} Nf4 {[%emt 0:00:06]} 31. g3 {[%emt 0:00:04]} Be6+ {[%emt 0:00:06]} 32. Ka3 {[%emt 0:00:09]} Nd5 {[%emt 0:00:03]} 33. f4 {[%emt 0:00:07]} Nb6 {[%emt 0:00:08]} 34. a5 {[%emt 0:00:06]} Nc4+ {[%emt 0:00:04]} 35. Kb4 {[%emt 0:00:02]} Ne3 {[%emt 0:00:05]} 36. Rg1 {[%emt 0:00:28]} Ng4 {[%emt 0:00:06]} 37. Rd1+ {[%emt 0:00:04]} Bd5 {[%emt 0:00:04]} 38. Rd2 {[%emt 0:00:09]} Ne3 {[%emt 0:00:05]} 39. Rd3 {[%emt 0:00:03]} Nf5 {[%emt 0:00:06]} 40. Rc3 {[%emt 0:00:03]} Ne7 {[%emt 0:00:04]} 41. Ka4 {[%emt 0:00:04]} Nc6 {[%emt 0:00:02]} 42. Re3 {[%emt 0:00:05]} f6 {[%emt 0:00:06]} 43. Re8 {[%emt 0:00:02]} g5 {[%emt 0:00:17]} 44. fxg5 {[%emt 0:00:02]} fxg5 {[%emt 0:00:02]} 45. Rh8 {[%emt 0:00:04]} Be4 {[%emt 0:00:02]} 46. Rg8 {[%emt 0:00:07]} h6 {[%emt 0:00:04]} 47. Rh8 {[%emt 0:00:02]} Bc2+ {[%emt 0:00:06]} 48. Kb5 {[%emt 0:00:06]} Bd3+ {[%emt 0:00:07]} 49. Ka4 {[%emt 0:00:02]} Bc2+ {[%emt 0:00:01]} 50. Ka3 {[%emt 0:00:01]} Nxa5 {[%emt 0:00:03]} 51. Rxh6+ {[%emt 0:00:02]} Ke5 {[%emt 0:00:03]} 52. h4 {[%emt 0:00:03]} Kf5 {[%emt 0:00:20]} 53. Rh5 {[%emt 0:00:02]} Nc6 {[%emt 0:00:05]} 54. Rxg5+ {[%emt 0:00:03]} Kf6 {[%emt 0:00:02]} 55. g4 {[%emt 0:00:02]} Be4 {[%emt 0:00:04]} 56. Rg8 {[%emt 0:00:04]} Ne5 {[%emt 0:00:05]} 57. g5+ {[%emt 0:00:02]} Kf7 {[%emt 0:00:03]} 58. Rc8 {[%emt 0:00:06]} Nf3 {[%emt 0:00:04]} 59. Rc4 {[%emt 0:00:04]} Bd5 {[%emt 0:00:07]} 60. Rf4+ {[%emt 0:00:02]} Kg6 {[%emt 0:00:02]} 61. Rf6+ {[%emt 0:00:04]} Kg7 {[%emt 0:00:04]} 62. h5 {[%emt 0:00:03]} Nxg5 {[%emt 0:00:12]} 63. Rg6+ {[%emt 0:00:02]} Kh7 {[%emt 0:00:03]} 64. Rxg5 {[%emt 0:00:02]} Bf7 {[%emt 0:00:02]} 65. Rf5 {[%emt 0:00:04]} Be8 {[%emt 0:00:03]} 66. Re5 {[%emt 0:00:03]} Bc6 {[%emt 0:00:06]} 67. Kb4 {[%emt 0:00:03]} Kh6 {[%emt 0:00:03]} 68. Kc5 {[%emt 0:00:11]} Bf3 {[%emt 0:00:02]} 69. Re7 {[%emt 0:00:02]} Bxh5 {[%emt 0:00:02]} 70. Rxb7 {[%emt 0:00:02]} a6 {[%emt 0:00:03]} 71. Rb6+ {[%emt 0:00:02]} Kh7 {[%emt 0:00:02]} 72. Rxa6 {[%emt 0:00:01]} Bf7 {[%emt 0:00:02]} 73. Ra7 {[%emt 0:00:02]} Kg8 {[%emt 0:00:02]} 74. Kd6 {[%emt 0:00:01]} Bg6 {[%emt 0:00:02]} 75. Ke7 {[%emt 0:00:03]} Kh8 {[%emt 0:00:05]} 76. Kf6 {[%emt 0:00:02]} Be4 {[%emt 0:00:03]} 77. Re7 {[%emt 0:00:03]} Bd5 {[%emt 0:00:02]} 78. Kg6 {[%emt 0:00:02]} Bg8 {[%emt 0:00:03]} 79. Rd7 {[%emt 0:00:04]} Be6 {[%emt 0:00:02]} 80. Rd8+ {[%emt 0:00:02]} Bg8 {[%emt 0:00:03]} 81. Kf6 {[%emt 0:00:02]} Kh7 {[%emt 0:00:02]} 82. Rd4 {[%emt 0:00:02]} Kh8 {[%emt 0:00:00]} 83. Rh4+ {[%emt 0:00:02]} Bh7 {[%emt 0:00:01]} 84. Rg4 {[%emt 0:00:04]} Bg8 {[%emt 0:00:02]} 85. Rh4+ {[%emt 0:00:02]} Bh7 {[%emt 0:00:01]} 86. Rg4 {[%emt 0:00:01]} Bg8 {[%emt 0:00:00]} 87. Rh4+ {[%emt 0:00:02]} 1/2-1/2

[Event "Queens Festival Final-B 2022"]
[Site "Tornelo"]
[Date "2022.06.25"]
[Round "6.1"]
[White "Masoumi, Sahar"]
[Black "Scarsi, Anna Laura"]
[Result "1/2-1/2"]
[ECO "D32"]
[WhiteElo "2004"]
[BlackElo "1867"]
[Annotator "NA RC"]
[PlyCount "71"]
[EventDate "2022.06.24"]
[EventType "tourn"]
[EventCountry "NET"]
[SourceTitle "playchess.com"]
[Source "ChessBase"]
[SourceQuality "1"]
[TimeControl "180+2"]

1. d4 {[%emt 0:00:02]} d5 {[%emt 0:00:05]} 2. c4 {[%emt 0:00:02]} e6 {[%emt 0:00:02]} 3. Nc3 {[%emt 0:00:01]} c5 {[%emt 0:00:01]} 4. cxd5 {[%emt 0:00:02]} exd5 {[%emt 0:00:00]} 5. Nf3 {[%emt 0:00:02]} Nc6 {[%emt 0:00:03]} 6. dxc5 {[%emt 0:00:01]} d4 {[%emt 0:00:00]} 7. Na4 {[%emt 0:00:03]} Bxc5 {[%emt 0:00:03]} 8. Nxc5 {[%emt 0:00:01]} Qa5+ {[%emt 0:00:01]} 9. Bd2 {[%emt 0:00:01]} Qxc5 {[%emt 0:00:02]} 10. Rc1 {[%emt 0:00:01]} Qd6 {[%emt 0:00:00]} 11. e3 {[%emt 0:00:04]} dxe3 {[%emt 0:00:06]} 12. Bxe3 {[%emt 0:00:02]} Qxd1+ {[%emt 0:00:02]} 13. Rxd1 {[%emt 0:00:01]} Nf6 {[%emt 0:00:01]} 14. Bb5 {[%emt 0:00:03]} Bd7 {[%emt 0:00:04]} 15. O-O {[%emt 0:00:03]} O-O {[%emt 0:00:09]} 16. Bg5 {[%emt 0:00:04]} Bg4 {[%emt 0:00:02]} 17. Bxf6 {[%emt 0:00:09]} gxf6 {[%emt 0:00:15]} 18. Bxc6 {[%emt 0:00:08]} bxc6 {[%emt 0:00:02]} 19. Rd6 {[%emt 0:00:02]} Rab8 {[%emt 0:00:07]} 20. b3 {[%emt 0:00:01]} Rfd8 {[%emt 0:00:13]} 21. Rxc6 {[%emt 0:00:02]} Bxf3 {[%emt 0:00:05]} 22. gxf3 {[%emt 0:00:01]} Rd2 {[%emt 0:00:01]} 23. Ra6 {[%emt 0:00:05]} Rb7 {[%emt 0:00:05]} 24. Rc1 {[%emt 0:00:03]} Kg7 {[%emt 0:00:06]} 25. Rc4 {[%emt 0:00:09]} h5 {[%emt 0:00:07]} 26. Rca4 {[%emt 0:00:08]} Re7 {[%emt 0:00:03]} 27. Re4 {[%emt 0:00:02]} Rc7 {[%emt 0:00:02]} 28. Rc4 {[%emt 0:00:12]} Re7 {[%emt 0:00:03]} 29. Rf4 {[%emt 0:00:44]} Re1+ {[%emt 0:00:12]} 30. Kg2 {[%emt 0:00:04]} Ree2 {[%emt 0:00:02]} 31. Raxf6 {[%emt 0:00:07]} Rxf2+ {[%emt 0:00:03]} 32. Kg1 {[%emt 0:00:02]} Rg2+ {[%emt 0:00:03]} 33. Kf1 {[%emt 0:00:01]} Rgf2+ {[%emt 0:00:08]} 34. Kg1 {[%emt 0:00:03]} Rg2+ {[%emt 0:00:03]} 35. Kf1 {[%emt 0:00:02]} Rgf2+ {[%emt 0:00:02]} 36. Kg1 {[%emt 0:00:01]} 1/2-1/2

[Event "Queens Festival Final-B 2022"]
[Site "Tornelo"]
[Date "2022.06.25"]
[Round "6.2"]
[White "Vujcic, Milena"]
[Black "Shohradowa, Lala"]
[Result "0-1"]
[ECO "C02"]
[WhiteElo "1987"]
[BlackElo "1856"]
[Annotator "NA RC"]
[PlyCount "46"]
[EventDate "2022.06.24"]
[EventType "tourn"]
[EventCountry "NET"]
[SourceTitle "playchess.com"]
[Source "ChessBase"]
[SourceQuality "1"]
[TimeControl "180+2"]

1. e4 {[%emt 0:00:02]} e6 {[%emt 0:00:05]} 2. d4 {[%emt 0:00:03]} d5 {[%emt 0:00:01]} 3. e5 {[%emt 0:00:01]} c5 {[%emt 0:00:02]} 4. c3 {[%emt 0:00:01]} Qb6 {[%emt 0:00:02]} 5. Nf3 {[%emt 0:00:02]} Nc6 {[%emt 0:00:01]} 6. a3 {[%emt 0:00:01]} Bd7 {[%emt 0:00:04]} 7. b4 {[%emt 0:00:03]} cxd4 {[%emt 0:00:02]} 8. cxd4 {[%emt 0:00:01]} Rc8 {[%emt 0:00:01]} 9. Be3 {[%emt 0:00:02]} Nh6 {[%emt 0:00:04]} 10. Bd3 {[%emt 0:00:03]} Ng4 {[%emt 0:00:02]} 11. O-O {[%emt 0:00:02]} Nxe3 {[%emt 0:00:02]} 12. fxe3 {[%emt 0:00:01]} g6 {[%emt 0:00:01]} 13. Ng5 {[%emt 0:00:05]} Nxe5 {[%emt 0:00:02]} 14. Kh1 {[%emt 0:00:55]} Bh6 {[%emt 0:00:03]} 15. h4 {[%emt 0:00:45]} Bxg5 {[%emt 0:00:02]} 16. hxg5 {[%emt 0:00:02]} Nxd3 {[%emt 0:00:03]} 17. Qxd3 {[%emt 0:00:02]} Bb5 {[%emt 0:00:01]} 18. Qd1 {[%emt 0:00:04]} Bxf1 {[%emt 0:00:02]} 19. Qxf1 {[%emt 0:00:01]} Qd8 {[%emt 0:00:09]} 20. Qf4 {[%emt 0:00:05]} h6 {[%emt 0:00:03]} 21. gxh6 {[%emt 0:00:03]} g5 {[%emt 0:00:02]} 22. Qh2 {[%emt 0:00:03]} Qf6 {[%emt 0:00:03]} 23. Kg1 {[%emt 0:00:06]} Rc1# {[%emt 0:00:02]} 0-1

[Event "Queens Festival Final-B 2022"]
[Site "Tornelo"]
[Date "2022.06.25"]
[Round "6.3"]
[White "Mammadova, Aysel"]
[Black "Deak-Sala, Emilia"]
[Result "1-0"]
[ECO "B22"]
[WhiteElo "1893"]
[BlackElo "1883"]
[Annotator "NA RC"]
[PlyCount "73"]
[EventDate "2022.06.24"]
[EventType "tourn"]
[EventCountry "NET"]
[SourceTitle "playchess.com"]
[Source "ChessBase"]
[SourceQuality "1"]
[TimeControl "180+2"]

1. e4 {[%emt 0:00:02]} c5 {[%emt 0:00:04]} 2. c3 {[%emt 0:00:04]} Nf6 {[%emt 0:00:01]} 3. e5 {[%emt 0:00:03]} Nd5 {[%emt 0:00:02]} 4. d4 {[%emt 0:00:02]} cxd4 {[%emt 0:00:02]} 5. Nf3 {[%emt 0:00:03]} Nc6 {[%emt 0:00:03]} 6. cxd4 {[%emt 0:00:02]} d6 {[%emt 0:00:02]} 7. Bc4 {[%emt 0:00:03]} Nb6 {[%emt 0:00:03]} 8. Bb5 {[%emt 0:00:02]} d5 {[%emt 0:00:03]} 9. O-O {[%emt 0:00:03]} Bg4 {[%emt 0:00:02]} 10. Be3 {[%emt 0:00:02]} e6 {[%emt 0:00:02]} 11. Nbd2 {[%emt 0:00:03]} Be7 {[%emt 0:00:03]} 12. Rc1 {[%emt 0:00:02]} Rc8 {[%emt 0:00:04]} 13. h3 {[%emt 0:00:03]} Bxf3 {[%emt 0:00:02]} 14. Qxf3 {[%emt 0:00:02]} O-O {[%emt 0:00:02]} 15. Bxc6 {[%emt 0:00:05]} bxc6 {[%emt 0:00:02]} 16. Qg3 {[%emt 0:00:05]} Kh8 {[%emt 0:00:13]} 17. f4 {[%emt 0:00:09]} f6 {[%emt 0:00:09]} 18. f5 {[%emt 0:00:07]} exf5 {[%emt 0:00:07]} 19. Rxf5 {[%emt 0:00:05]} fxe5 {[%emt 0:00:26]} 20. Rxf8+ {[%emt 0:00:04]} Qxf8 {[%emt 0:00:04]} 21. dxe5 {[%emt 0:00:09]} c5 {[%emt 0:00:16]} 22. Rf1 {[%emt 0:00:05]} Qe8 {[%emt 0:00:02]} 23. Nf3 {[%emt 0:00:06]} d4 {[%emt 0:00:05]} 24. Bg5 {[%emt 0:00:05]} Bxg5 {[%emt 0:00:03]} 25. Nxg5 {[%emt 0:00:06]} Nc4 {[%emt 0:00:30]} 26. e6 {[%emt 0:00:17]} Ne3 {[%emt 0:00:16]} 27. Rf3 {[%emt 0:00:11]} h6 {[%emt 0:00:11]} 28. Nf7+ {[%emt 0:00:02]} Kh7 {[%emt 0:00:03]} 29. Nd6 {[%emt 0:00:07]} Qxe6 {[%emt 0:00:04]} 30. Nxc8 {[%emt 0:00:02]} Qxc8 {[%emt 0:00:04]} 31. Qe5 {[%emt 0:00:03]} Qc6 {[%emt 0:00:28]} 32. Rg3 {[%emt 0:00:03]} Qf6 {[%emt 0:00:11]} 33. Qe4+ {[%emt 0:00:18]} Kh8 {[%emt 0:00:04]} 34. Rf3 {[%emt 0:00:03]} Qd6 {[%emt 0:00:05]} 35. Qe8+ {[%emt 0:00:06]} Kh7 {[%emt 0:00:02]} 36. Rf8 {[%emt 0:00:06]} Qxf8 {[%emt 0:00:09]} 37. Qxf8 {[%emt 0:00:02]} 1-0